[Event "DVM U14 2021"]
[Site "Willingen"]
[Date "2022.08.13"]
[Round "2"]
[White "Dickel, Karl-Joachim"]
[Black "Rudolph, Alexander"]
[Result "0-1"]
[ECO "C55"]
[WhiteElo "1178"]
[BlackElo "1417"]
[Annotator "NA RC COMBH"]
[PlyCount "90"]
[EventDate "2022.08.12"]
[EventType "team-tourn"]
[EventRounds "7"]
[EventCountry "GER"]
[SourceTitle "playchess.com"]
[Source "ChessBase"]
[SourceQuality "1"]
[TimeControl "40/5400+30:1800+30"]

1. e4 {[%emt 0:00:01]} e5 {[%emt 0:00:41]} 2. Nf3 {[%emt 0:00:22]} Nc6 {[%emt 0:00:51]} 3. Bc4 {[%emt 0:00:13]} Nf6 {[%emt 0:01:04]} 4. Nc3 {[%emt 0:00:37]} Nxe4 {[%emt 0:00:33]} 5. Bxf7+ {[%emt 0:00:47]} Kxf7 {[%emt 0:01:01]} 6. Nxe4 {[%emt 0:00:58]} h6 {[%emt 0:00:59]} 7. d3 {[%emt 0:01:31]} d5 {[%emt 0:00:23]} 8. Nc3 {[%emt 0:03:56]} Bc5 {[%emt 0:00:44]} 9. Qe2 {[%emt 0:02:16]} Re8 {[%emt 0:01:46]} 10. O-O {[%emt 0:03:03]} Kg8 {[%emt 0:00:18]} 11. Re1 {[%emt 0:03:33]} Bg4 {[%emt 0:01:36]} 12. h3 {[%emt 0:01:40]} Bxf3 {[%emt 0:01:10]} 13. Qxf3 {[%emt 0:00:28]} Rf8 {[%emt 0:00:16]} 14. Qxd5+ {[%emt 0:02:04]} Qxd5 {[%emt 0:01:09]} 15. Nxd5 {[%emt 0:00:06]} Bxf2+ {[%emt 0:00:02]} 16. Kf1 {[%emt 0:00:46]} Bxe1+ {[%emt 0:00:29]} 17. Kxe1 {[%emt 0:00:08]} Nd4 {[%emt 0:00:13]} 18. Ne3 {[%emt 0:00:26]} c6 {[%emt 0:00:45]} 19. c3 {[%emt 0:00:25]} Nf5 {[%emt 0:00:06]} 20. Nxf5 {[%emt 0:01:41]} Rxf5 {[%emt 0:00:13]} 21. Ke2 {[%emt 0:00:13]} Raf8 {[%emt 0:00:07]} 22. Be3 {[%emt 0:00:24]} b6 {[%emt 0:00:10]} 23. g4 {[%emt 0:01:52]} Rf3 {[%emt 0:00:29]} 24. Rh1 {[%emt 0:01:16]} Rg3 {[%emt 0:00:05]} 25. Bf2 {[%emt 0:00:25]} Rg2 {[%emt 0:00:27]} 26. Rf1 {[%emt 0:00:36]} g5 {[%emt 0:00:20]} 27. Ke1 {[%emt 0:00:20]} Rh2 {[%emt 0:00:49]} 28. Bg3 {[%emt 0:01:49]} Rxh3 {[%emt 0:00:42]} 29. Rxf8+ {[%emt 0:00:26]} Kxf8 {[%emt 0:00:09]} 30. Kf2 {[%emt 0:01:04]} Kf7 {[%emt 0:00:28]} 31. Kg2 {[%emt 0:02:43]} Rxg3+ {[%emt 0:00:08]} 32. Kxg3 {[%emt 0:00:02]} Ke6 {[%emt 0:00:05]} 33. Kf3 {[%emt 0:00:08]} Kd5 {[%emt 0:00:30]} 34. b3 {[%emt 0:00:08]} b5 {[%emt 0:00:13]} 35. a3 {[%emt 0:00:43]} c5 {[%emt 0:00:16]} 36. Ke3 {[%emt 0:00:25]} c4 {[%emt 0:00:11]} 37. dxc4+ {[%emt 0:00:07]} bxc4 {[%emt 0:00:07]} 38. bxc4+ {[%emt 0:00:23]} Kxc4 {[%emt 0:00:07]} 39. Ke4 {[%emt 0:00:01]} Kxc3 {[%emt 0:00:58]} 40. Kxe5 {[%emt 0:00:11]} Kd3 {[%emt 0:00:09]} 41. a4 {[%emt 0:30:45]} a5 {[%emt 0:30:27]} 42. Kd5 {[%emt 0:03:09]} Ke3 {[%emt 0:01:29]} 43. Kc5 {[%emt 0:00:09]} Kf4 {[%emt 0:00:05]} 44. Kb5 {[%emt 0:00:04]} Kxg4 {[%emt 0:00:06]} 45. Kxa5 {[%emt 0:00:12]} h5 {[%emt 0:00:01]} 0-1

[Event "DVM U14 2021"]
[Site "Willingen"]
[Date "2022.08.14"]
[Round "3"]
[White "Krüger, Arthur"]
[Black "Bolz, Jannis"]
[Result "1/2-1/2"]
[ECO "B01"]
[WhiteElo "1996"]
[BlackElo "1616"]
[Annotator "TA"]
[PlyCount "46"]
[EventDate "2022.08.12"]
[EventType "team-tourn"]
[EventRounds "7"]
[EventCountry "GER"]
[SourceTitle "playchess.com"]
[Source "ChessBase"]
[SourceQuality "1"]
[TimeControl "40/5400+30:1800+30"]

{[%evp 9,46,52,67,55,45,52,56,49,61,-8,0,-56,-15,-27,-21,-74,-58,-53,-26,-48,37,-63,90,50,34,61,169,104,102,43,243,181,212,-35,64,-133,-120,-128,-125]} 1. e4 {[%emt 0:00:05]} d5 {[%emt 0:00:03]} 2. exd5 {[%emt 0:00:20]} Qxd5 {[%emt 0:00:06]} 3. Nc3 {[%emt 0:00:15]} Qd8 {[%emt 0:00:05]} 4. d4 {[%emt 0:00:51]} Nf6 {[%emt 0:00:08]} 5. Nf3 {[%emt 0:00:34]} g6 {[%emt 0:00:56]} 6. Bf4 {[%emt 0:02:23] B01: Scandinavian Defence.} Bg7 {[%emt 0:00:14]} 7. Qd2 {[%emt 0:00:38]} O-O {[%emt 0:11:53][%cal Oc7c5]} 8. O-O-O {[%emt 0:02:01] White is slightly better.} a6 {[%emt 0:01:58]} 9. h3 {[%emt 0:02:09] [#] White is more active.} (9. Be2 $14) 9... b5 $146 {[%emt 0:02:35]} ({Predecessor:} 9... e6 10. Bh6 b6 11. Bxg7 Kxg7 12. Ne5 Bb7 13. Ng4 Nbd7 14. Kb1 Qe7 15. f3 Rfd8 {1-0 (66) Rudolf,M (1912)-Grabe,L (1650) Playchess.com INT 2020}) 10. g4 {[%emt 0:04:26]} (10. a3 $11) 10... Bb7 {[%emt 0:00:42]} 11. Bg2 {[%emt 0:00:27]} Nbd7 {[%emt 0:08:31]} 12. Ne1 {[%emt 0:08:39]} (12. a3 $11 {remains equal.}) 12... Bxg2 $17 {[%emt 0:09:54]} 13. Nxg2 {[%emt 0:00:38]} e6 {[%emt 0:01:30]} (13... b4 $5 {[%cal Rb4c3]} 14. Ne2 a5 $11) 14. f3 {[%emt 0:03:26]} Qc8 {[%emt 0:04:21]} (14... c5 $15 15. dxc5 Qa5) 15. h4 {[%emt 0:04:35]} (15. Bh6 $14) 15... h5 $2 {[%emt 0:07:16]} (15... Qb7 $1 $15 {stays ahead.}) 16. gxh5 {[%emt 0:02:55]} (16. Bh6 {with more complications.} c6 17. Ne4 Qc7 18. Kb1) 16... Nxh5 {[%emt 0:00:21]} 17. Bh6 {[%emt 0:00:16]} Qb7 {[%emt 0:06:08]} (17... c6 $14) 18. Bxg7 $1 $18 {[%emt 0:01:39]} Kxg7 {[%emt 0:00:10] [#]} 19. Ne4 {[%emt 0:04:21]} ({Better is} 19. Nf4 $1 $16 {[%cal Rf4h5] Strongly threatening Nxh5+.} Rh8 20. d5 Nxf4 21. Qxf4) 19... Ndf6 {[%emt 0:11:20]} ({Black should try} 19... Qc6 $14) 20. Nf4 {[%emt 0:01:59]} Rh8 {[%emt 0:01:03] [#]} 21. Ng5 {[%emt 0:14:44]} ({Only move:} 21. Nxf6 $1 $18 Kxf6 22. d5) 21... Qc6 {[%emt 0:07:02]} (21... Nxf4 $15 22. Qxf4 c6) 22. Nxh5+ $2 {[%emt 0:09:33]} (22. Nd3 $1 $14 {keeps the upper hand.} Nd7 23. Kb1) 22... Rxh5 $17 {[%emt 0:01:57]} 23. Qf4 {[%emt 0:01:10]} Qd6 {[%emt 0:02:10] Weighted Error Value: White=0.56/Black=0.60} 1/2-1/2

[Event "DVM U14 2021"]
[Site "Willingen"]
[Date "2022.08.14"]
[Round "3"]
[White "Schwartz, Oliver"]
[Black "Malinowsky, Levi"]
[Result "1/2-1/2"]
[ECO "D85"]
[WhiteElo "1872"]
[BlackElo "1814"]
[Annotator "NA RC"]
[PlyCount "42"]
[EventDate "2022.08.12"]
[EventType "team-tourn"]
[EventRounds "7"]
[EventCountry "GER"]
[SourceTitle "playchess.com"]
[Source "ChessBase"]
[SourceQuality "1"]
[TimeControl "40/5400+30:1800+30"]

{[%evp 14,42,27,27,33,2,16,-49,32767,-58,-22,-39,32767,32767,32767,32767,46,32767,32767,32767,32767,32767,32767,32767,32767,-6,66,-15,41,32767,92]} 1. d4 {[%emt 0:00:04]} Nf6 {[%emt 0:00:00]} 2. c4 {[%emt 0:00:09]} g6 {[%emt 0:00:00]} 3. Nc3 {[%emt 0:00:16]} d5 {[%emt 0:01:32]} 4. cxd5 {[%emt 0:00:09]} Nxd5 {[%emt 0:00:31]} 5. e4 {[%emt 0:00:07]} Nxc3 {[%emt 0:00:14]} 6. bxc3 {[%emt 0:01:03]} Bg7 {[%emt 0:00:44]} 7. Nf3 {[%emt 0:01:10]} c5 {[%emt 0:13:39]} 8. Be3 {[%emt 0:04:53]} Nc6 {[%emt 0:11:37]} 9. Qd2 {[%emt 0:04:35]} Qa5 {[%emt 0:11:24]} 10. Rd1 {[%emt 0:07:05]} ({Better is} 10. Rb1 $11) 10... Bg4 {[%emt 0:11:41]} 11. Bc4 {[%emt 0:09:51]} e6 {[%emt 0:06:06]} 12. O-O {[%emt 0:11:09]} ({Don't blunder} 12. dxc5 $2 Bxc3 13. Rc1 Bxd2+ $19) 12... O-O-O {[%emt 0:02:25]} 13. Qb2 {[%emt 0:08:01]} Rd7 {[%emt 0:16:39]} 14. d5 {[%emt 0:10:45]} exd5 {[%emt 0:04:20]} 15. Rxd5 {[%emt 0:04:53]} Rxd5 {[%emt 0:03:36]} 16. Bxd5 {[%emt 0:08:07]} Bxc3 {[%emt 0:00:22]} 17. Qb3 {[%emt 0:03:02]} Qb4 {[%emt 0:01:05]} 18. Bxf7 {[%emt 0:00:55]} Qxb3 {[%emt 0:00:07]} 19. axb3 {[%emt 0:01:59]} Rf8 {[%emt 0:01:06]} (19... Bxf3 $11 20. gxf3 b6) 20. Ng5 {[%emt 0:05:36]} (20. Bd5 $14) 20... b6 {[%emt 0:02:10]} (20... Bd4 $1 $11) 21. Bd5 {[%emt 0:03:21]} Nd4 $16 {[%emt 3:02:15]} (21... h6 $14 {was preferrable.}) 1/2-1/2

[Event "DVM U14 2021"]
[Site "Willingen"]
[Date "2022.08.14"]
[Round "3"]
[White "Bungarten, Jona"]
[Black "von Beckh, Frieda"]
[Result "1-0"]
[ECO "B21"]
[WhiteElo "1834"]
[BlackElo "1548"]
[Annotator "NA RC"]
[PlyCount "95"]
[EventDate "2022.08.12"]
[EventType "team-tourn"]
[EventRounds "7"]
[EventCountry "GER"]
[SourceTitle "playchess.com"]
[Source "ChessBase"]
[SourceQuality "1"]
[TimeControl "40/5400+30:1800+30"]

1. e4 {[%emt 0:00:07]} c5 {[%emt 0:00:00]} 2. d4 {[%emt 0:00:06]} cxd4 {[%emt 0:00:00]} 3. c3 {[%emt 0:00:05]} dxc3 {[%emt 0:00:00]} 4. Nxc3 {[%emt 0:00:05]} Nc6 {[%emt 0:00:16]} 5. Nf3 {[%emt 0:00:06]} d6 {[%emt 0:00:52]} 6. Bc4 {[%emt 0:00:05]} e6 {[%emt 0:00:11]} 7. O-O {[%emt 0:00:06]} Nf6 {[%emt 0:00:31]} 8. Qe2 {[%emt 0:00:28]} Be7 {[%emt 0:00:07]} 9. Rd1 {[%emt 0:00:06]} e5 {[%emt 0:02:56]} 10. Be3 {[%emt 0:01:07]} Bg4 {[%emt 0:01:50]} 11. Rd2 {[%emt 0:03:36]} (11. h3 $5 {[%cal Rh3g4]} Be6 12. Bb5 $11) 11... O-O {[%emt 0:00:53]} 12. Rad1 {[%emt 0:06:13]} a6 {[%emt 0:00:25]} 13. h3 {[%emt 0:05:59]} Bh5 {[%emt 0:01:57]} 14. g4 {[%emt 0:00:25]} Bg6 {[%emt 0:01:41]} 15. Bg5 {[%emt 0:23:27]} b5 {[%emt 0:01:24]} (15... Ne8 $11 {is more appropriate.} 16. Bxe7 Qxe7) 16. Bxf6 {[%emt 0:07:50]} Bxf6 {[%emt 0:01:14]} 17. Rxd6 {[%emt 0:01:18]} Qc7 {[%emt 0:03:21] [#]} 18. Rd7 {[%emt 0:07:09]} ({Better is} 18. Rxc6 $1 $14 Qxc6 19. Bd5) 18... Qc8 {[%emt 0:14:49]} 19. Nd5 $2 {[%emt 0:06:01]} Nd4 {[%emt 0:04:35]} 20. Nxd4 {[%emt 0:01:38]} Qxd7 {[%emt 0:01:12] [#]} 21. Nxb5 $1 {[%emt 0:01:47]} Qc6 {[%emt 0:06:29]} 22. Nxf6+ {[%emt 0:01:46]} Qxf6 {[%emt 0:00:25]} 23. Nc7 {[%emt 0:05:12]} Rac8 {[%emt 0:00:13]} 24. Nd5 {[%emt 0:00:59]} Qe6 {[%emt 0:01:07]} (24... Qh4 $1 $11 {keeps the balance.}) 25. Bxa6 {[%emt 0:02:42]} Rb8 {[%emt 0:00:59]} 26. Bc4 {[%emt 0:00:45]} Rfc8 {[%emt 0:00:28]} 27. b3 {[%emt 0:03:00]} Rd8 {[%emt 0:01:18]} 28. a4 {[%emt 0:01:20]} Qd6 {[%emt 0:00:32]} 29. a5 {[%emt 0:03:30]} Kf8 {[%emt 0:06:37]} 30. a6 {[%emt 0:01:49]} f6 {[%emt 0:03:24]} 31. g5 {[%emt 0:02:06]} Bf7 {[%emt 0:00:13]} 32. gxf6 {[%emt 0:00:15]} gxf6 {[%emt 0:01:48]} 33. Qe3 {[%emt 0:01:56]} Kg7 {[%emt 0:00:28]} 34. Kh2 {[%emt 0:00:53]} Kh8 {[%emt 0:15:33]} 35. Kh1 {[%emt 0:01:36]} Bxd5 {[%emt 0:01:11]} 36. Rxd5 {[%emt 0:04:15]} Qc7 {[%emt 0:00:51]} (36... Qa3 $142 37. Qf3 Kg7 38. Qg3+ (38. Rxd8 Rxd8 39. Qg3+ Kh8 $16) 38... Kh8) 37. a7 {[%emt 0:02:50]} Ra8 {[%emt 0:00:23]} 38. Rxd8+ {[%emt 0:00:30]} Rxd8 {[%emt 0:00:22]} 39. Bd5 {[%emt 0:00:38]} Qa5 {[%emt 0:07:50]} 40. b4 {[%emt 0:06:00]} Qa4 {[%emt 0:01:10]} 41. a8=Q {[%emt 0:30:21]} Rxa8 {[%emt 0:30:03]} 42. Bxa8 {[%emt 0:00:08]} Qxa8 {[%emt 0:00:50]} 43. b5 {[%emt 0:00:00]} f5 {[%emt 0:00:00]} 44. b6 {[%emt 0:00:00]} fxe4 {[%emt 0:00:00]} 45. Kh2 {[%emt 0:00:00]} Qd5 {[%emt 0:00:00]} 46. Qc3 {[%emt 0:00:00]} e3 {[%emt 0:00:00]} 47. Qxe3 $18 {[%emt 0:00:00]} (47. Qc8+ $142 Kg7 48. b7 Qf3 49. Qc7+ Kh6 50. Qd6+ Kh5 51. Qxe5+ Kg6 52. Qd6+ Kg7 53. Qc7+ Kh6 54. Qb6+ Kg7 55. Qb2+ Kf7 56. fxe3) 47... e4 {[%emt 0:00:00]} 48. Qf4 1-0

[Event "DVM U14 2021"]
[Site "Willingen"]
[Date "2022.08.14"]
[Round "3"]
[White "Ehrig, Leon Chris"]
[Black "Bade, Deniz"]
[Result "1-0"]
[ECO "B11"]
[WhiteElo "1832"]
[BlackElo "1414"]
[Annotator "NA RC"]
[PlyCount "49"]
[EventDate "2022.08.12"]
[EventType "team-tourn"]
[EventRounds "7"]
[EventCountry "GER"]
[SourceTitle "playchess.com"]
[Source "ChessBase"]
[SourceQuality "1"]
[TimeControl "40/5400+30:1800+30"]

{[%evp 14,46,-33,-45,-25,-69,-44,-58,-51,-77,-46,-62,25,51,60,50,111,115,121,104,32767,32767,141,46,188,225,304,32767,32767,32767,247,32767,492,546,537]} 1. e4 {[%emt 0:00:29]} c6 {[%emt 0:01:10]} 2. Nc3 {[%emt 0:00:45]} d5 {[%emt 0:00:06]} 3. Qe2 {[%emt 0:00:31]} d4 {[%emt 0:01:08]} 4. Nd1 {[%emt 0:00:41]} e5 {[%emt 0:00:28]} 5. d3 {[%emt 0:00:17]} Bd6 {[%emt 0:00:33]} 6. g3 {[%emt 0:00:24]} c5 {[%emt 0:01:20]} 7. Bg2 {[%emt 0:00:49]} Nc6 {[%emt 0:06:25]} 8. a3 {[%emt 0:04:56]} Qc7 {[%emt 0:01:31]} 9. Nf3 {[%emt 0:05:28]} Bd7 {[%emt 0:02:21]} 10. O-O {[%emt 0:01:10]} f6 {[%emt 0:01:46]} 11. Nh4 {[%emt 0:01:22]} O-O-O {[%emt 0:02:50]} 12. Nf5 {[%emt 0:02:16]} g6 {[%emt 0:01:31]} (12... Bxf5 $15 13. exf5 Kb8) 13. Nxd6+ {[%emt 0:00:13]} Qxd6 {[%emt 0:01:21]} 14. b4 $1 {[%emt 0:02:38]} cxb4 {[%emt 0:00:30]} ({Black should play} 14... h5 $1 $14) 15. axb4 {[%emt 0:00:59]} Qxb4 {[%emt 0:01:14] [#]} 16. Ba3 {[%emt 0:02:25]} (16. c3 $142 $1 {[%cal Rc3b4]} dxc3 17. Qa2 (17. Qc2 Nd4 $11)) 16... Qb6 {[%emt 0:00:52]} 17. Nb2 {[%emt 0:11:17]} Qc7 {[%emt 0:10:58]} 18. Rfb1 {[%emt 0:07:03]} ({White should play} 18. Rfc1 $18) 18... Kb8 {[%emt 0:02:20]} ({Better is} 18... b6 $14) 19. Na4 {[%emt 0:07:41]} Bc8 {[%emt 0:22:16]} 20. Bc5 {[%emt 0:07:58]} h5 {[%emt 0:01:06]} 21. h3 {[%emt 0:17:22]} Nge7 {[%emt 0:03:48]} (21... Qa5 $142) 22. c4 {[%emt 0:09:32]} Na5 $18 {[%emt 0:06:06]} (22... Be6 23. Qa2 (23. Qf3 Rdf8 $16) 23... Nc8) 23. Qd2 {[%emt 0:02:59]} Nec6 {[%emt 0:08:29]} 24. Nb6 {[%emt 0:07:54]} Be6 {[%emt 0:04:34]} 25. Nd5 {[%emt 3:02:39]} 1-0

[Event "DVM U14 2021"]
[Site "Willingen"]
[Date "2022.08.14"]
[Round "3"]
[White "Freude, Max"]
[Black "Reus, Nicholas"]
[Result "1-0"]
[ECO "B13"]
[WhiteElo "1819"]
[BlackElo "1663"]
[Annotator "NA RC"]
[PlyCount "77"]
[EventDate "2022.08.12"]
[EventType "team-tourn"]
[EventRounds "7"]
[EventCountry "GER"]
[SourceTitle "playchess.com"]
[Source "ChessBase"]
[SourceQuality "1"]
[TimeControl "40/5400+30:1800+30"]

{[%evp 11,69,26,29,31,30,32,20,28,33,30,35,-35,-29,-39,-21,-10,0,0,0,32767,10,0,0,-10,32767,32767,32767,32767,32767,32767,32767,32767,32767,32767,32767,115,189,32767,32767,32767,32767,32767,32767,32767,271,279,32767,325,793,864,885,717,32767,32767,32767,685,1171,1355,1468,1838]} 1. e4 {[%emt 0:00:04]} c6 {[%emt 0:00:00]} 2. d4 {[%emt 0:00:07]} d5 {[%emt 0:00:00]} 3. exd5 {[%emt 0:00:05]} cxd5 {[%emt 0:00:00]} 4. Bd3 {[%emt 0:00:09]} Nf6 {[%emt 0:00:08]} 5. c3 {[%emt 0:00:09]} Bg4 {[%emt 0:06:58]} 6. Qb3 {[%emt 0:05:16]} Qd7 {[%emt 0:00:39]} 7. Bf4 {[%emt 0:01:22]} Nc6 {[%emt 0:01:07]} 8. Nd2 {[%emt 0:00:35]} e6 {[%emt 0:00:16]} 9. Ngf3 {[%emt 0:01:19]} Bxf3 {[%emt 0:00:07]} 10. Nxf3 {[%emt 0:00:46]} ({Reject} 10. gxf3 Nh5 11. Bg3 Bd6 $15) 10... Bd6 {[%emt 0:00:42]} 11. Ne5 {[%emt 0:00:29]} ({White should play} 11. Be5 $14) 11... Qc7 {[%emt 0:09:14]} 12. O-O {[%emt 0:03:09]} Nh5 {[%emt 0:05:21]} 13. Be3 {[%emt 0:04:47]} Bxe5 {[%emt 0:00:09]} 14. dxe5 {[%emt 0:02:00]} Nxe5 {[%emt 0:02:49]} 15. Qa4+ {[%emt 0:04:58]} Nd7 {[%emt 0:02:06]} 16. Rae1 {[%emt 0:02:25]} Nhf6 {[%emt 0:19:03]} 17. Qh4 {[%emt 0:30:55]} Rg8 {[%emt 0:19:07]} 18. c4 {[%emt 0:06:20]} Kf8 {[%emt 0:13:13]} 19. Rc1 {[%emt 0:02:13]} Qd8 {[%emt 0:01:43]} 20. Rfd1 {[%emt 0:04:06]} Rc8 {[%emt 0:05:50]} 21. Qd4 {[%emt 0:02:16]} e5 {[%emt 0:00:50]} 22. Qxa7 {[%emt 0:00:44]} d4 {[%emt 0:01:24]} 23. Bd2 {[%emt 0:03:44]} Qc7 {[%emt 0:02:03]} (23... b6 $16) 24. Qa3+ {[%emt 0:00:36]} Nc5 {[%emt 0:00:25]} 25. Bf5 {[%emt 0:02:33]} Rd8 {[%emt 0:01:22]} 26. b4 {[%emt 0:00:28]} Ne6 {[%emt 0:00:30]} 27. b5+ {[%emt 0:00:57]} Ke8 {[%emt 0:02:48]} 28. c5 {[%emt 0:01:13]} Qe7 {[%emt 0:02:30]} 29. Re1 {[%emt 0:03:31]} Rd5 $2 {[%emt 0:00:50]} (29... g6) 30. Bb4 {[%emt 0:01:52]} Qc7 {[%emt 0:00:38]} 31. Bd3 {[%emt 0:02:26]} e4 {[%emt 0:00:45]} 32. Bxe4 {[%emt 0:00:09]} Nxe4 {[%emt 0:00:03]} 33. Rxe4 {[%emt 0:02:45]} g6 {[%emt 0:00:32]} 34. Qb3 {[%emt 0:02:19]} Rf5 $18 {[%emt 0:01:21]} 35. c6 {[%emt 0:00:53]} b6 {[%emt 0:00:09]} 36. Rxe6+ {[%emt 0:01:11]} Kd8 {[%emt 0:00:40]} 37. Rd6+ {[%emt 0:00:13]} Kc8 {[%emt 0:00:24]} 38. Qa4 {[%emt 0:00:22]} Kb8 {[%emt 0:00:05]} 39. Rd7 1-0

[Event "DVM U14 2021"]
[Site "Willingen"]
[Date "2022.08.14"]
[Round "3"]
[White "Prinzen, Siri Marleen"]
[Black "Strauss, Florian"]
[Result "1-0"]
[ECO "D02"]
[WhiteElo "1801"]
[BlackElo "1527"]
[Annotator "NA RC"]
[PlyCount "103"]
[EventDate "2022.08.12"]
[EventType "team-tourn"]
[EventRounds "7"]
[EventCountry "GER"]
[SourceTitle "playchess.com"]
[Source "ChessBase"]
[SourceQuality "1"]
[TimeControl "40/5400+30:1800+30"]

1. d4 {[%emt 0:00:01]} Nf6 {[%emt 0:00:05]} 2. Bf4 {[%emt 0:00:05]} d5 {[%emt 0:00:06]} 3. e3 {[%emt 0:00:06]} e6 {[%emt 0:01:04]} 4. Nd2 {[%emt 0:00:13]} c5 {[%emt 0:00:44]} 5. c3 {[%emt 0:00:28]} Be7 {[%emt 0:01:03]} 6. Ngf3 {[%emt 0:00:48]} Nbd7 {[%emt 0:00:31]} 7. Bd3 {[%emt 0:01:19]} a6 {[%emt 0:01:16]} 8. Ne5 {[%emt 0:01:01]} Nxe5 $11 {[%emt 0:03:07]} 9. dxe5 {[%emt 0:00:15]} Nd7 {[%emt 0:01:05]} 10. Qg4 $2 {[%emt 0:01:37]} (10. O-O $11) 10... g5 {[%emt 0:03:06]} 11. Bxg5 {[%emt 0:08:01]} Bxg5 {[%emt 0:02:13]} 12. Nf3 {[%emt 0:00:57]} Be7 {[%emt 0:02:04]} ({Black should play} 12... Bh6 $19 13. O-O Qb6) 13. Qg7 {[%emt 0:00:54]} Rf8 {[%emt 0:01:29]} 14. Bxh7 {[%emt 0:01:47]} Qb6 {[%emt 0:02:51]} 15. Rb1 {[%emt 0:05:50]} (15. h4 $17 {is a better defense.}) 15... f6 {[%emt 0:03:43]} 16. Qg6+ {[%emt 0:03:54]} Kd8 {[%emt 0:01:01]} 17. exf6 {[%emt 0:02:57]} Bxf6 {[%emt 0:04:37]} 18. Qc2 {[%emt 0:04:06]} e5 {[%emt 0:03:52]} 19. h4 {[%emt 0:03:07]} e4 {[%emt 0:05:13]} 20. Ng5 {[%emt 0:00:42]} Ne5 {[%emt 0:00:57]} 21. Nxe4 $2 {[%emt 0:18:42]} (21. Rd1 {is a better defense.} Kc7 22. Rxd5 Nd3+ 23. Rxd3 exd3 24. Bxd3) 21... dxe4 {[%emt 0:02:49]} 22. Qxe4 {[%emt 0:01:40]} Qc6 {[%emt 0:02:55]} 23. Rd1+ {[%emt 0:03:45]} Kc7 {[%emt 0:02:17]} 24. Qxc6+ {[%emt 0:01:24]} bxc6 {[%emt 0:01:04]} 25. Be4 {[%emt 0:07:17]} Rh8 {[%emt 0:01:01]} 26. Ke2 {[%emt 0:04:50]} Be6 {[%emt 0:03:58]} 27. b3 {[%emt 0:03:59]} Rxh4 {[%emt 0:02:02]} 28. Rxh4 {[%emt 0:00:30]} Bxh4 {[%emt 0:00:10]} 29. Rh1 {[%emt 0:03:12]} Bf6 {[%emt 0:00:41]} 30. Rh7+ {[%emt 0:02:11]} Nd7 {[%emt 0:02:57]} 31. c4 {[%emt 0:02:30]} a5 {[%emt 0:01:01]} 32. a4 {[%emt 0:03:59]} Re8 {[%emt 0:01:17]} 33. f3 {[%emt 0:01:22]} Rb8 {[%emt 0:03:19]} 34. Bc2 {[%emt 0:00:23]} Rg8 {[%emt 0:03:22]} 35. Kf2 {[%emt 0:02:26]} Kb6 {[%emt 0:02:47]} 36. f4 {[%emt 0:02:28]} (36. Rh6 $142) 36... Rd8 {[%emt 0:05:17]} 37. Rh6 {[%emt 0:02:40]} Bg8 {[%emt 0:04:31]} 38. Be4 {[%emt 0:01:59]} Re8 {[%emt 0:04:10]} 39. Bf5 {[%emt 0:00:22]} Be6 {[%emt 0:03:38]} 40. Bc2 $2 {[%emt 0:01:49]} (40. Bxe6 Rxe6 41. g4) 40... Bg8 $2 {[%emt 0:03:01]} (40... Bc3 $19 41. f5 {[#]} Nf6 $1 42. Rxf6 Bxf6 43. fxe6 Rxe6) 41. Bf5 {[%emt 0:30:31] [#]} Be6 $2 {[%emt 0:30:55]} (41... Bg7 $1 $19 {[%cal Rg7h6]} 42. Bxd7 Bxh6 43. Bxe8 Bh7) 42. Bc2 {[%emt 0:00:11]} Re7 {[%emt 0:01:54]} 43. Kf3 {[%emt 0:02:54]} Bg7 {[%emt 0:02:26]} 44. Rh1 {[%emt 0:00:00]} Nf6 {[%emt 0:00:00]} 45. f5 {[%emt 0:00:00]} Bc8 {[%emt 0:00:00]} 46. e4 {[%emt 0:00:00]} Nd7 {[%emt 0:00:00]} 47. g4 {[%emt 0:00:00]} Bd4 {[%emt 0:00:00]} 48. Rh2 {[%emt 0:00:00]} (48. g5 $142) 48... Ne5+ {[%emt 0:00:00]} 49. Kf4 {[%emt 0:00:00] [#]} Nxc4 $1 {[%emt 0:00:00]} 50. Re2 {[%emt 0:00:00]} Ne3 $2 {[%emt 0:00:00]} 51. Rxe3 {[%emt 0:00:00] [#]} Bxe3+ {[%emt 0:00:00]} (51... Be5+ $1 $19 52. Kf3 Rh7) 52. Kxe3 {[%emt 0:00:00]} 1-0